[Event "FIDE WYCC Open U14 2023"]
[Site "Montesilvano"]
[Date "2023.11.24"]
[Round "11.24"]
[White "Artemov, Andriy"]
[Black "Vingris, Mikelis"]
[Result "0-1"]
[ECO "E73"]
[WhiteElo "1779"]
[BlackElo "2127"]
[Annotator "NA RC"]
[PlyCount "88"]
[EventDate "2023.11.13"]
[EventType "swiss"]
[EventCountry "ITA"]
[SourceTitle "playchess.com"]
[Source "ChessBase"]
[SourceQuality "1"]
[TimeControl "40/5400+30:1800+30"]

1. d4 {[%emt 0:00:03]} Nf6 {[%emt 0:02:54]} 2. c4 {[%emt 0:00:08]} g6 {[%emt 0:00:06]} 3. Nc3 {[%emt 0:00:06]} Bg7 {[%emt 0:00:04]} 4. e4 {[%emt 0:00:06]} d6 {[%emt 0:00:06]} 5. Be2 {[%emt 0:00:18]} Nbd7 {[%emt 0:02:42]} 6. Be3 {[%emt 0:01:08]} O-O {[%emt 0:01:12]} 7. g4 {[%emt 0:04:30]} e5 {[%emt 0:08:49]} 8. d5 {[%emt 0:01:08]} Nc5 {[%emt 0:00:43]} 9. f3 {[%emt 0:01:31]} a5 {[%emt 0:00:56]} 10. h4 {[%emt 0:00:20]} h5 {[%emt 0:25:45]} 11. g5 {[%emt 0:00:10]} Nfd7 {[%emt 0:01:49]} 12. Nh3 {[%emt 0:03:49]} Re8 {[%emt 0:00:42]} 13. Qc2 {[%emt 0:00:56]} Na6 {[%emt 0:07:49]} 14. a3 {[%emt 0:04:49]} Nac5 {[%emt 0:02:42]} 15. Na4 {[%emt 0:07:06]} Nxa4 {[%emt 0:01:48]} 16. Qxa4 {[%emt 0:00:06]} Nc5 {[%emt 0:00:51]} 17. Bxc5 {[%emt 0:00:17]} dxc5 {[%emt 0:00:08]} 18. Nf2 {[%emt 0:00:32]} Qe7 {[%emt 0:07:34]} 19. O-O-O {[%emt 0:00:59]} Bd7 {[%emt 0:00:49]} 20. Qc2 {[%emt 0:03:14]} Qd6 {[%emt 0:02:04]} 21. Nd3 {[%emt 0:07:17]} a4 {[%emt 0:01:41]} 22. Bf1 {[%emt 0:01:02]} Reb8 {[%emt 0:01:51]} 23. Qf2 {[%emt 0:00:58]} Ra5 {[%emt 0:01:37]} 24. Bh3 {[%emt 0:02:05]} Be8 {[%emt 0:01:54]} 25. Rhe1 {[%emt 0:05:27]} c6 {[%emt 0:10:46]} 26. f4 {[%emt 0:08:52]} b5 {[%emt 0:02:00]} 27. fxe5 {[%emt 0:02:21]} Qd8 {[%emt 0:04:48]} 28. Qc2 {[%emt 0:03:48]} Qb6 {[%emt 0:04:01]} 29. Rd2 {[%emt 0:01:16]} bxc4 {[%emt 0:01:05]} 30. Qxc4 {[%emt 0:01:01]} Rb5 {[%emt 0:01:13]} 31. Ree2 {[%emt 0:01:30]} Rb3 {[%emt 0:01:49]} 32. d6 {[%emt 0:00:38]} Rxa3 {[%emt 0:01:27]} 33. Rc2 {[%emt 0:02:50]} Ra1+ {[%emt 0:01:17]} 34. Kd2 {[%emt 0:00:02]} Rh1 {[%emt 0:01:47]} 35. Bg2 {[%emt 0:00:35]} Rxh4 {[%emt 0:00:23]} 36. Rf2 {[%emt 0:03:14]} Qd8 {[%emt 0:00:41]} 37. Qxc5 {[%emt 0:01:08]} Qxg5+ {[%emt 0:00:11]} 38. Ke2 {[%emt 0:00:39]} Rh2 {[%emt 0:00:51]} 39. Kf1 {[%emt 0:01:20]} a3 {[%emt 0:00:34]} 40. Qa7 {[%emt 0:00:00]} Rd8 {[%emt 0:00:00]} 41. Qxa3 {[%emt 0:03:34]} Bd7 {[%emt 0:11:32]} 42. Qc5 {[%emt 0:03:29]} Bh3 {[%emt 0:09:17]} 43. Kg1 {[%emt 0:05:00]} Qg3 {[%emt 0:00:48]} 44. Qb6 {[%emt 0:00:56]} Ra8 {[%emt 0:01:12]} 0-1

[Event "FIDE WYCC Open U14 2023"]
[Site "Montesilvano"]
[Date "2023.11.24"]
[Round "11.25"]
[White "Tao, Sihan"]
[Black "Lira, Suan Bruno Fernandes"]
[Result "0-1"]
[ECO "B15"]
[WhiteElo "2122"]
[BlackElo "1858"]
[Annotator "NA RC"]
[PlyCount "82"]
[EventDate "2023.11.13"]
[EventType "swiss"]
[EventCountry "ITA"]
[SourceTitle "playchess.com"]
[Source "ChessBase"]
[SourceQuality "1"]
[TimeControl "40/5400+30:1800+30"]

1. e4 {[%emt 0:00:04]} c6 {[%emt 0:00:11]} 2. Nc3 {[%emt 0:00:06]} d5 {[%emt 0:00:08]} 3. d4 {[%emt 0:00:07]} dxe4 {[%emt 0:00:09]} 4. Nxe4 {[%emt 0:00:05]} Nf6 {[%emt 0:00:31]} 5. Nxf6+ {[%emt 0:00:36]} exf6 {[%emt 0:00:11]} 6. Bc4 {[%emt 0:00:02]} Bd6 {[%emt 0:00:13]} 7. Qe2+ {[%emt 0:00:26]} Be7 {[%emt 0:00:06]} 8. Nf3 {[%emt 0:00:06]} O-O {[%emt 0:00:06]} 9. O-O {[%emt 0:00:04]} Bd6 {[%emt 0:00:05]} 10. Re1 {[%emt 0:00:05]} a5 {[%emt 0:00:04]} 11. Bd3 {[%emt 0:19:32]} Na6 {[%emt 0:02:13]} 12. c3 Nc7 {[%emt 0:00:21]} 13. Bf4 {[%emt 0:06:12]} Bxf4 {[%emt 0:05:34]} 14. Qe4 {[%emt 0:00:02]} Bxh2+ {[%emt 0:00:47]} 15. Nxh2 {[%emt 0:04:58]} g6 {[%emt 0:01:44]} 16. Qh4 {[%emt 0:19:12]} Kg7 {[%emt 0:05:38]} 17. Nf1 {[%emt 0:03:55]} Be6 {[%emt 0:06:50]} 18. Ne3 {[%emt 0:01:26]} Nd5 {[%emt 0:04:30]} 19. f4 {[%emt 0:07:24]} f5 {[%emt 0:07:04]} 20. Qg3 {[%emt 0:06:14]} Nxe3 {[%emt 0:03:06]} 21. Qxe3 {[%emt 0:00:14]} a4 {[%emt 0:07:57]} 22. Qe5+ {[%emt 0:03:37]} Kg8 {[%emt 0:02:24]} 23. a3 {[%emt 0:05:47]} Re8 {[%emt 0:04:49]} 24. g3 {[%emt 0:00:33]} h5 {[%emt 0:05:46]} 25. Kf2 {[%emt 0:01:14]} Qb6 {[%emt 0:13:01]} 26. Rab1 {[%emt 0:11:14]} Ba2 {[%emt 0:09:56]} 27. Qxe8+ {[%emt 0:00:02]} Rxe8 {[%emt 0:00:07]} 28. Rxe8+ {[%emt 0:00:02]} Kg7 {[%emt 0:00:05]} 29. Rd1 {[%emt 0:03:26]} Qxb2+ {[%emt 0:02:44]} 30. Re2 {[%emt 0:00:07]} Qxa3 {[%emt 0:00:28]} 31. Ra1 {[%emt 0:04:10]} Qxc3 {[%emt 0:00:11]} 32. Raxa2 {[%emt 0:00:36]} Qxd3 {[%emt 0:01:58]} 33. Rxa4 {[%emt 0:00:06]} b5 {[%emt 0:00:31]} 34. Rb4 {[%emt 0:00:10]} Qc3 {[%emt 0:00:44]} 35. Reb2 {[%emt 0:00:18]} h4 {[%emt 0:02:25]} 36. gxh4 {[%emt 0:01:12]} Qh3 {[%emt 0:00:04]} 37. d5 {[%emt 0:00:53]} Qxh4+ {[%emt 0:00:35]} 38. Kg2 {[%emt 0:01:27]} Qg4+ {[%emt 0:01:51]} 39. Kf2 {[%emt 0:01:01]} c5 {[%emt 0:01:33]} 40. Rxb5 {[%emt 0:00:00]} Qxf4+ {[%emt 0:00:00]} 41. Kg1 {[%emt 0:10:10]} Qd4+ {[%emt 0:00:59]} 0-1

[Event "FIDE WYCC Open U14 2023"]
[Site "Montesilvano"]
[Date "2023.11.24"]
[Round "11.26"]
[White "George Samir, David"]
[Black "Villa Tornero, Alex"]
[Result "0-1"]
[ECO "B04"]
[WhiteElo "1942"]
[BlackElo "2383"]
[Annotator "RC"]
[PlyCount "80"]
[EventDate "2023.11.13"]
[EventType "swiss"]
[EventCountry "ITA"]
[SourceTitle "playchess.com"]
[Source "ChessBase"]
[SourceQuality "1"]
[TimeControl "40/5400+30:1800+30"]

1. e4 {[%emt 0:00:24]} Nf6 {[%emt 0:00:39]} 2. e5 {[%emt 0:00:58]} Nd5 {[%emt 0:00:03]} 3. d4 {[%emt 0:00:12]} d6 {[%emt 0:00:02]} 4. Nf3 {[%emt 0:00:05]} g6 {[%emt 0:00:03]} 5. Bc4 {[%emt 0:00:14]} Nb6 {[%emt 0:00:06]} 6. Bb3 {[%emt 0:00:03]} Bg7 {[%emt 0:00:05]} 7. Qe2 {[%emt 0:01:56]} O-O {[%emt 0:02:21]} 8. h3 {[%emt 0:04:04]} c5 {[%emt 0:01:09]} 9. dxc5 {[%emt 0:02:49]} dxc5 {[%emt 0:00:01]} 10. O-O {[%emt 0:00:15]} Qc7 {[%emt 0:00:20]} 11. a4 {[%emt 0:04:07]} Be6 {[%emt 0:03:33]} 12. Bxe6 {[%emt 0:10:43]} fxe6 {[%emt 0:00:25]} 13. Ng5 {[%emt 0:01:20]} Qc8 {[%emt 0:07:05]} 14. f4 {[%emt 0:01:39]} Nc6 {[%emt 0:00:44]} 15. Be3 {[%emt 0:02:42]} Bh6 {[%emt 0:02:37]} 16. Ne4 {[%emt 0:07:43]} Nd5 {[%emt 0:00:19]} 17. g3 {[%emt 0:00:06]} Nxe5 {[%emt 0:02:35]} 18. Bxc5 {[%emt 0:02:07]} Nc6 {[%emt 0:02:32]} 19. c4 {[%emt 0:08:19]} Nf6 {[%emt 0:00:39]} 20. Nbc3 {[%emt 0:00:52]} Nxe4 {[%emt 0:02:08]} 21. Qxe4 {[%emt 0:02:14]} e5 {[%emt 0:00:07]} 22. Kg2 {[%emt 0:01:13]} exf4 {[%emt 0:01:34]} 23. Nd5 {[%emt 0:02:54]} Qf5 {[%emt 0:08:32]} 24. Qxf5 {[%emt 0:05:00]} Rxf5 {[%emt 0:00:20]} 25. Nxe7+ {[%emt 0:00:08]} Nxe7 {[%emt 0:00:07]} 26. Bxe7 {[%emt 0:00:04]} Re8 {[%emt 0:26:19]} 27. Rae1 {[%emt 0:02:45]} Bg7 {[%emt 0:04:17]} 28. Rxf4 {[%emt 0:06:09]} Re5 {[%emt 0:01:00]} 29. Rxe5 {[%emt 0:06:42]} Bxe5 {[%emt 0:00:03]} 30. Bf6 {[%emt 0:00:18]} Bxf4 {[%emt 0:00:09]} 31. gxf4 {[%emt 0:00:03]} Re4 {[%emt 0:00:16]} 32. Kf3 {[%emt 0:00:06]} Rxc4 {[%emt 0:00:05]} 33. a5 {[%emt 0:00:06]} Kf7 {[%emt 0:00:11]} 34. Be5 {[%emt 0:00:16]} Ke6 {[%emt 0:00:06]} 35. Kg4 {[%emt 0:00:06]} Rc5 {[%emt 0:02:00]} 36. Kg5 {[%emt 0:00:13]} Rxa5 {[%emt 0:00:35]} 37. Kh6 {[%emt 0:00:05]} Rxe5 {[%emt 0:00:09]} 38. fxe5 {[%emt 0:00:25]} Kxe5 {[%emt 0:00:05]} 39. Kxh7 {[%emt 0:00:06]} Kf6 {[%emt 0:00:04]} 40. b4 {[%emt 0:00:00]} a6 {[%emt 0:00:00]} 0-1

[Event "FIDE WYCC Open U14 2023"]
[Site "Montesilvano"]
[Date "2023.11.24"]
[Round "11.27"]
[White "Tabatadze, Erekle"]
[Black "Besou, Hussain"]
[Result "0-1"]
[ECO "E73"]
[WhiteElo "1925"]
[BlackElo "2341"]
[Annotator "RC"]
[PlyCount "94"]
[EventDate "2023.11.13"]
[EventType "swiss"]
[EventCountry "ITA"]
[SourceTitle "playchess.com"]
[Source "ChessBase"]
[SourceQuality "1"]
[TimeControl "40/5400+30:1800+30"]

1. d4 {[%emt 0:00:03]} Nf6 {[%emt 0:00:06]} 2. c4 {[%emt 0:00:05]} g6 {[%emt 0:00:31]} 3. Nc3 {[%emt 0:00:13]} Bg7 {[%emt 0:00:06]} 4. e4 {[%emt 0:00:07]} d6 {[%emt 0:00:05]} 5. Be2 {[%emt 0:00:04]} O-O {[%emt 0:00:06]} 6. Bg5 {[%emt 0:00:19]} c5 {[%emt 0:00:07]} 7. d5 {[%emt 0:00:04]} e6 {[%emt 0:00:04]} 8. f3 {[%emt 0:00:03]} exd5 {[%emt 0:00:40]} 9. cxd5 {[%emt 0:00:10]} a6 {[%emt 0:00:29]} 10. a4 {[%emt 0:00:06]} h6 {[%emt 0:00:58]} 11. Be3 {[%emt 0:00:06]} Re8 {[%emt 0:00:46]} 12. Qd2 {[%emt 0:00:06]} Nh7 {[%emt 0:05:56]} 13. g4 {[%emt 0:19:16]} Qh4+ {[%emt 0:11:32]} 14. Bf2 {[%emt 0:01:02]} Qe7 {[%emt 0:00:05]} 15. Nh3 {[%emt 0:09:00]} h5 {[%emt 0:05:17]} 16. O-O-O {[%emt 0:07:59]} hxg4 17. fxg4 {[%emt 0:03:12]} b5 {[%emt 0:03:04]} 18. Rhe1 {[%emt 0:07:32]} b4 {[%emt 0:08:10]} 19. Nb1 {[%emt 0:00:19]} Nd7 {[%emt 0:00:35]} 20. Bg3 {[%emt 0:04:47]} Ne5 {[%emt 0:01:06]} 21. Nf2 {[%emt 0:00:18]} Bd7 {[%emt 0:06:11]} 22. Bxe5 {[%emt 0:04:04]} Qxe5 {[%emt 0:01:35]} 23. b3 {[%emt 0:00:22]} Qxh2 {[%emt 0:00:16]} 24. Bc4 {[%emt 0:03:13]} Bh6 {[%emt 0:00:06]} 25. Re3 {[%emt 0:00:05]} Qe5 {[%emt 0:01:08]} 26. Rh1 {[%emt 0:00:44]} Bxe3 {[%emt 0:00:06]} 27. Qxe3 {[%emt 0:00:04]} Qg5 {[%emt 0:00:05]} 28. Kd2 {[%emt 0:00:18]} Qxe3+ {[%emt 0:00:23]} 29. Kxe3 {[%emt 0:00:06]} Kg7 {[%emt 0:00:05]} 30. Nd2 {[%emt 0:00:07]} Ng5 {[%emt 0:01:25]} 31. Kf4 {[%emt 0:00:15]} f6 {[%emt 0:00:06]} 32. Bd3 {[%emt 0:03:18]} Nf7 {[%emt 0:02:28]} 33. Nc4 {[%emt 0:00:31]} Reb8 {[%emt 0:00:16]} 34. Be2 {[%emt 0:01:06]} a5 {[%emt 0:05:10]} 35. Nd1 {[%emt 0:00:44]} Bc8 {[%emt 0:00:35]} 36. Nde3 {[%emt 0:00:07]} Ba6 {[%emt 0:00:24]} 37. Bf1 {[%emt 0:01:08]} Bxc4 {[%emt 0:00:35]} 38. Nxc4 {[%emt 0:00:40]} Rd8 {[%emt 0:00:39]} 39. Ne3 {[%emt 0:05:18]} Ne5 {[%emt 0:00:29]} 40. Kg3 {[%emt 0:00:00]} Rh8 {[%emt 0:00:00]} 41. Rg1 {[%emt 0:07:44]} Rh7 {[%emt 0:04:05]} 42. Bg2 {[%emt 0:06:42]} c4 {[%emt 0:00:56]} 43. bxc4 {[%emt 0:00:15]} Rc8 {[%emt 0:00:14]} 44. Rc1 {[%emt 0:03:12]} Nd3 {[%emt 0:02:20]} 45. Rd1 {[%emt 0:00:40]} Nb2 {[%emt 0:00:48]} 46. Rc1 {[%emt 0:00:36]} Nxa4 {[%emt 0:00:11]} 47. Ra1 {[%emt 0:00:06]} b3 {[%emt 0:00:04]} 0-1

[Event "FIDE WYCC Open U14 2023"]
[Site "Montesilvano"]
[Date "2023.11.24"]
[Round "11.28"]
[White "Lissillour, Baptiste"]
[Black "Panda, Barnabas"]
[Result "1-0"]
[ECO "B42"]
[WhiteElo "2298"]
[BlackElo "1905"]
[Annotator "RC"]
[PlyCount "83"]
[EventDate "2023.11.13"]
[EventType "swiss"]
[EventCountry "ITA"]
[SourceTitle "playchess.com"]
[Source "ChessBase"]
[SourceQuality "1"]
[TimeControl "40/5400+30:1800+30"]

1. e4 {[%emt 0:00:02]} c5 {[%emt 0:00:11]} 2. Nf3 e6 {[%emt 0:00:09]} 3. d4 {[%emt 0:00:11]} cxd4 {[%emt 0:00:08]} 4. Nxd4 {[%emt 0:00:04]} a6 {[%emt 0:00:07]} 5. Bd3 {[%emt 0:00:05]} Ne7 {[%emt 0:00:19]} 6. O-O {[%emt 0:02:21]} Nbc6 {[%emt 0:00:30]} 7. Nb3 {[%emt 0:03:46]} g6 {[%emt 0:00:31]} 8. Nc3 {[%emt 0:03:46]} Bg7 {[%emt 0:00:35]} 9. Be3 {[%emt 0:00:25]} b5 {[%emt 0:06:06]} 10. Qd2 {[%emt 0:03:40]} O-O {[%emt 0:08:00]} 11. Bh6 {[%emt 0:01:19]} Bxh6 {[%emt 0:04:55]} 12. Qxh6 {[%emt 0:00:04]} Qb6 {[%emt 0:00:10]} 13. a4 {[%emt 0:02:31]} b4 {[%emt 0:01:30]} 14. Ne2 {[%emt 0:04:12]} Ne5 {[%emt 0:06:31]} 15. a5 {[%emt 0:02:59]} Qa7 {[%emt 0:01:27]} 16. Rad1 {[%emt 0:02:45]} Bb7 {[%emt 0:11:37]} 17. Ng3 {[%emt 0:14:28]} d5 {[%emt 0:13:12]} 18. Qd2 {[%emt 0:20:02]} Nxd3 {[%emt 0:05:42]} 19. cxd3 {[%emt 0:00:06]} dxe4 {[%emt 0:01:00]} 20. dxe4 {[%emt 0:01:02]} Nc6 {[%emt 0:07:16]} 21. Qg5 {[%emt 0:01:29]} Rad8 {[%emt 0:02:27]} 22. Nh5 {[%emt 0:05:10]} Ba8 {[%emt 0:05:49]} 23. Rxd8 {[%emt 0:07:55]} Rxd8 {[%emt 0:00:31]} 24. Nf6+ {[%emt 0:01:00]} Kg7 {[%emt 0:00:54]} 25. Ng4 {[%emt 0:00:30]} Qe7 {[%emt 0:05:30]} 26. Qh6+ {[%emt 0:00:56]} Kh8 {[%emt 0:00:34]} 27. h4 {[%emt 0:09:49]} f5 {[%emt 0:02:28]} 28. Ne3 {[%emt 0:02:30]} Nd4 {[%emt 0:02:45]} 29. Nxd4 {[%emt 0:01:11]} Rxd4 {[%emt 0:00:06]} 30. Rc1 {[%emt 0:00:34]} Rd8 {[%emt 0:06:12]} 31. e5 {[%emt 0:00:11]} Bb7 {[%emt 0:02:34]} 32. Rc4 {[%emt 0:03:48]} Kg8 {[%emt 0:02:33]} 33. Qf4 {[%emt 0:05:05]} b3 {[%emt 0:02:00]} 34. Rc3 {[%emt 0:01:02]} Bd5 {[%emt 0:01:04]} 35. Kh2 {[%emt 0:01:54]} Qb7 {[%emt 0:00:50]} 36. Qg5 {[%emt 0:00:53]} Qd7 {[%emt 0:01:20]} 37. h5 {[%emt 0:00:17]} Kg7 {[%emt 0:00:54]} 38. Qf6+ {[%emt 0:00:30]} Kg8 {[%emt 0:00:04]} 39. hxg6 {[%emt 0:00:32]} Rf8 {[%emt 0:00:04]} 40. Qg5 {[%emt 0:00:00]} Kh8 {[%emt 0:00:00]} 41. Nxd5 {[%emt 0:09:08]} exd5 {[%emt 0:02:26]} 42. Rh3 {[%emt 0:00:23]} 1-0

[Event "FIDE WYCC Open U14 2023"]
[Site "Montesilvano"]
[Date "2023.11.24"]
[Round "11.29"]
[White "Boci, Mateo"]
[Black "Balint, Peter"]
[Result "0-1"]
[ECO "B42"]
[WhiteElo "1832"]
[BlackElo "2256"]
[Annotator "RC"]
[PlyCount "72"]
[EventDate "2023.11.13"]
[EventType "swiss"]
[EventCountry "ITA"]
[SourceTitle "playchess.com"]
[Source "ChessBase"]
[SourceQuality "1"]
[TimeControl "40/5400+30:1800+30"]

1. e4 {[%emt 0:00:32]} c5 {[%emt 0:00:02]} 2. Nf3 {[%emt 0:00:14]} e6 {[%emt 0:00:04]} 3. d4 {[%emt 0:00:10]} cxd4 {[%emt 0:00:04]} 4. Nxd4 {[%emt 0:00:06]} a6 {[%emt 0:00:02]} 5. Bd3 {[%emt 0:00:10]} Bc5 {[%emt 0:00:04]} 6. Nb3 {[%emt 0:00:32]} Ba7 {[%emt 0:00:04]} 7. O-O {[%emt 0:00:32]} Ne7 {[%emt 0:01:25]} 8. c4 {[%emt 0:01:09]} Nbc6 {[%emt 0:01:00]} 9. Nc3 {[%emt 0:00:44]} O-O {[%emt 0:01:15]} 10. Qe2 {[%emt 0:01:51]} d6 {[%emt 0:02:28]} 11. Be3 {[%emt 0:00:58]} e5 {[%emt 0:03:56]} 12. Rad1 {[%emt 0:02:35]} Na5 {[%emt 0:18:59]} 13. Nxa5 {[%emt 0:07:03]} Qxa5 {[%emt 0:00:58]} 14. Bb1 {[%emt 0:00:33]} Rd8 {[%emt 0:07:13]} 15. Bxa7 {[%emt 0:07:21]} Rxa7 {[%emt 0:03:04]} 16. Qe3 {[%emt 0:00:07]} Nc6 {[%emt 0:03:22]} 17. Nd5 {[%emt 0:01:31]} Ra8 {[%emt 0:13:00]} 18. a3 {[%emt 0:14:18]} Qc5 {[%emt 0:12:58]} 19. Qg5 {[%emt 0:10:27]} h6 {[%emt 0:03:10]} 20. Qh4 {[%emt 0:01:53]} Be6 {[%emt 0:02:56]} 21. b4 {[%emt 0:02:54]} Qa7 {[%emt 0:00:54]} 22. Kh1 {[%emt 0:01:10]} Rac8 {[%emt 0:07:36]} 23. f4 {[%emt 0:01:00]} exf4 {[%emt 0:00:30]} 24. Qxf4 {[%emt 0:00:18]} Rd7 {[%emt 0:03:43]} 25. Ne3 {[%emt 0:08:46]} Ne5 {[%emt 0:02:24]} 26. c5 {[%emt 0:00:51]} Qb8 {[%emt 0:01:47]} 27. cxd6 {[%emt 0:01:56]} Rxd6 {[%emt 0:00:07]} 28. Nd5 {[%emt 0:01:16]} Bxd5 {[%emt 0:06:11]} 29. exd5 {[%emt 0:01:08]} Rf6 {[%emt 0:01:06]} 30. Qe4 {[%emt 0:00:38]} Rxf1+ {[%emt 0:00:13]} 31. Rxf1 {[%emt 0:00:06]} g6 {[%emt 0:00:05]} 32. Qf4 {[%emt 0:02:33]} Qd6 {[%emt 0:01:38]} 33. Qxh6 {[%emt 0:01:35]} Ng4 {[%emt 0:00:09]} 34. Qh4 {[%emt 0:00:53]} Qf4 {[%emt 0:00:04]} 35. Bd3 {[%emt 0:05:55]} Rc1 {[%emt 0:00:25]} 36. Rg1 {[%emt 0:00:59]} Qxh2+ {[%emt 0:00:06]} 0-1

[Event "FIDE WYCC Open U14 2023"]
[Site "Montesilvano"]
[Date "2023.11.24"]
[Round "11.30"]
[White "Sheahan, Gavin"]
[Black "Brattgjerd, Isak Vinh"]
[Result "1/2-1/2"]
[ECO "D20"]
[WhiteElo "1807"]
[BlackElo "2235"]
[Annotator "RC"]
[PlyCount "137"]
[EventDate "2023.11.13"]
[EventType "swiss"]
[EventCountry "ITA"]
[SourceTitle "playchess.com"]
[Source "ChessBase"]
[SourceQuality "1"]
[TimeControl "40/5400+30:1800+30"]

1. d4 {[%emt 0:00:02]} d5 {[%emt 0:00:02]} 2. c4 {[%emt 0:00:05]} dxc4 {[%emt 0:00:03]} 3. e3 {[%emt 0:00:06]} a6 {[%emt 0:00:03]} 4. Bxc4 {[%emt 0:00:38]} Nf6 {[%emt 0:00:03]} 5. Nf3 {[%emt 0:00:15]} e6 {[%emt 0:00:04]} 6. O-O {[%emt 0:00:40]} c5 {[%emt 0:00:02]} 7. Nbd2 {[%emt 0:00:12]} b5 {[%emt 0:00:24]} 8. Be2 {[%emt 0:00:13]} Bb7 {[%emt 0:00:05]} 9. a4 {[%emt 0:01:37]} b4 {[%emt 0:00:07]} 10. b3 {[%emt 0:02:27]} Nbd7 {[%emt 0:00:14]} 11. Bb2 {[%emt 0:01:49]} Be7 {[%emt 0:00:12]} 12. Nc4 {[%emt 0:02:00]} Qc7 {[%emt 0:01:54]} 13. dxc5 {[%emt 0:01:20]} Bxc5 {[%emt 0:00:24]} 14. Nfe5 {[%emt 0:02:08]} O-O {[%emt 0:02:08]} 15. Bf3 {[%emt 0:03:31]} Rfd8 {[%emt 0:05:38]} 16. Qe2 {[%emt 0:00:58]} Bxf3 {[%emt 0:08:57]} 17. Qxf3 {[%emt 0:00:20]} Bf8 {[%emt 0:05:19]} 18. Nd3 {[%emt 0:09:06]} Nd5 {[%emt 0:17:22]} 19. Rac1 {[%emt 0:09:49]} Rac8 {[%emt 0:26:18]} 20. e4 {[%emt 0:08:40]} Nc3 {[%emt 0:03:37]} 21. Bxc3 {[%emt 0:09:17]} bxc3 {[%emt 0:00:06]} 22. Rxc3 {[%emt 0:00:50]} Nf6 {[%emt 0:00:44]} 23. Re1 {[%emt 0:08:28]} Rd4 {[%emt 0:04:09]} 24. e5 {[%emt 0:05:27]} Nd5 {[%emt 0:00:30]} 25. Rcc1 {[%emt 0:00:13]} Qa7 {[%emt 0:08:46]} 26. h3 {[%emt 0:05:07]} Rb8 {[%emt 0:02:56]} 27. Na5 {[%emt 0:01:52]} Ne7 {[%emt 0:00:09]} 28. Nb2 {[%emt 0:07:11]} Rbd8 {[%emt 0:01:25]} 29. Nbc4 {[%emt 0:01:35]} Rd3 {[%emt 0:03:49]} 30. Re3 {[%emt 0:00:37]} Rxe3 {[%emt 0:01:32]} 31. Qxe3 {[%emt 0:01:09]} Qb8 {[%emt 0:01:12]} 32. Qb6 {[%emt 0:02:11]} Qc8 {[%emt 0:01:06]} 33. Nb7 {[%emt 0:02:09]} Rd3 {[%emt 0:00:30]} 34. Nbd6 {[%emt 0:01:59]} Qa8 {[%emt 0:00:36]} 35. Ne3 {[%emt 0:03:02]} h5 {[%emt 0:02:25]} 36. b4 {[%emt 0:02:29]} Nd5 {[%emt 0:01:04]} 37. Nxd5 {[%emt 0:00:18]} Qxd5 {[%emt 0:00:05]} 38. Qxa6 {[%emt 0:01:32]} Rd4 {[%emt 0:02:04]} 39. Qa7 {[%emt 0:01:45]} Bxd6 {[%emt 0:01:12]} 40. exd6 {[%emt 0:00:00]} Rd1+ {[%emt 0:00:00]} 41. Rxd1 {[%emt 0:00:59]} Qxd1+ {[%emt 0:01:54]} 42. Kh2 {[%emt 0:00:01]} Qxd6+ {[%emt 0:00:03]} 43. g3 {[%emt 0:00:02]} Qxb4 {[%emt 0:00:34]} 44. Qa8+ {[%emt 0:00:09]} Kh7 {[%emt 0:00:18]} 45. a5 {[%emt 0:00:10]} h4 {[%emt 0:01:57]} 46. g4 {[%emt 0:01:40]} f5 {[%emt 0:09:37]} 47. gxf5 {[%emt 0:16:25]} Qf4+ {[%emt 0:01:31]} 48. Kg2 {[%emt 0:02:14]} Qg5+ {[%emt 0:00:09]} 49. Kf1 {[%emt 0:01:15]} Qc1+ {[%emt 0:01:39]} 50. Ke2 {[%emt 0:00:47]} Qc2+ {[%emt 0:00:21]} 51. Ke3 {[%emt 0:00:24]} Qc3+ {[%emt 0:00:41]} 52. Ke2 {[%emt 0:05:21]} Qc2+ {[%emt 0:01:47]} 53. Kf1 {[%emt 0:00:20]} Qc1+ {[%emt 0:00:09]} 54. Kg2 {[%emt 0:02:43]} Qg5+ {[%emt 0:00:06]} 55. Kf3 {[%emt 0:00:47]} Qxf5+ {[%emt 0:00:09]} 56. Ke2 {[%emt 0:00:20]} Qc2+ {[%emt 0:01:06]} 57. Ke3 {[%emt 0:01:11]} Qc5+ {[%emt 0:01:46]} 58. Kd3 {[%emt 0:02:23]} Qb5+ {[%emt 0:02:13]} 59. Kd4 {[%emt 0:01:42]} e5+ {[%emt 0:00:57]} 60. Ke3 {[%emt 0:00:22]} Qb3+ {[%emt 0:00:30]} 61. Ke2 {[%emt 0:01:31]} Qc4+ {[%emt 0:01:13]} 62. Ke3 {[%emt 0:02:21]} Qd4+ {[%emt 0:02:29]} 63. Kf3 {[%emt 0:00:15]} Qf4+ {[%emt 0:00:19]} 64. Kg2 {[%emt 0:01:41]} Qg5+ {[%emt 0:00:17]} 65. Kf1 {[%emt 0:01:14]} Qc1+ {[%emt 0:00:07]} 66. Ke2 {[%emt 0:00:48]} Qc4+ {[%emt 0:01:23]} 67. Kf3 {[%emt 0:00:16]} Qf4+ {[%emt 0:00:27]} 68. Ke2 {[%emt 0:00:17]} Qc4+ {[%emt 0:00:08]} 69. Kf3 {[%emt 0:00:08]} 1/2-1/2

[Event "FIDE WYCC Open U14 2023"]
[Site "Montesilvano"]
[Date "2023.11.24"]
[Round "11.31"]
[White "Kabylbek, Yedil"]
[Black "Arnold, Rhys"]
[Result "0-1"]
[ECO "B32"]
[WhiteElo "1710"]
[BlackElo "2146"]
[Annotator "NA RC"]
[PlyCount "86"]
[EventDate "2023.11.13"]
[EventType "swiss"]
[EventCountry "ITA"]
[SourceTitle "playchess.com"]
[Source "ChessBase"]
[SourceQuality "1"]
[TimeControl "40/5400+30:1800+30"]

1. e4 {[%emt 0:00:02]} c5 {[%emt 0:00:03]} 2. Nf3 {[%emt 0:01:09]} Nc6 {[%emt 0:00:04]} 3. d4 {[%emt 0:00:03]} cxd4 {[%emt 0:00:04]} 4. Nxd4 {[%emt 0:00:03]} e5 {[%emt 0:00:05]} 5. Nb5 {[%emt 0:00:04]} d6 {[%emt 0:00:03]} 6. c4 {[%emt 0:00:03]} g6 {[%emt 0:00:02]} 7. N1c3 {[%emt 0:01:46]} a6 {[%emt 0:02:22]} 8. Na3 {[%emt 0:00:56]} Be6 {[%emt 0:00:27]} 9. Nc2 {[%emt 0:02:17]} f5 {[%emt 0:00:03]} 10. exf5 {[%emt 0:02:10]} gxf5 {[%emt 0:00:43]} 11. Be2 {[%emt 0:01:23]} Nf6 {[%emt 0:02:45]} 12. O-O {[%emt 0:01:04]} Bg7 {[%emt 0:00:32]} 13. f4 {[%emt 0:00:43]} O-O {[%emt 0:07:17]} 14. Be3 {[%emt 0:07:27]} Rc8 {[%emt 0:14:41]} 15. Rc1 {[%emt 0:05:17]} Ne7 {[%emt 0:06:30]} 16. Nb4 {[%emt 0:07:10]} exf4 {[%emt 0:11:23]} 17. Bd4 {[%emt 0:00:31]} Qa5 {[%emt 0:11:12]} 18. a3 {[%emt 0:03:37]} Kh8 {[%emt 0:03:01]} 19. Re1 {[%emt 0:03:09]} Nc6 {[%emt 0:03:03]} 20. Nxc6 {[%emt 0:01:09]} bxc6 {[%emt 0:00:06]} 21. Bd3 {[%emt 0:03:20]} Rce8 {[%emt 0:01:03]} 22. Qf3 {[%emt 0:04:08]} c5 {[%emt 0:01:58]} 23. Bf2 {[%emt 0:00:09]} Ng4 {[%emt 0:00:21]} 24. Re2 {[%emt 0:01:47]} Ne5 {[%emt 0:00:38]} 25. Qh3 {[%emt 0:01:06]} f3 {[%emt 0:00:49]} 26. Rxe5 {[%emt 0:02:17]} dxe5 {[%emt 0:00:43]} 27. gxf3 {[%emt 0:00:04]} Rd8 {[%emt 0:03:47]} 28. Rd1 {[%emt 0:00:58]} e4 {[%emt 0:04:13]} 29. fxe4 {[%emt 0:00:15]} fxe4 {[%emt 0:00:16]} 30. Qxe6 {[%emt 0:00:01]} exd3 {[%emt 0:00:02]} 31. Ne4 {[%emt 0:01:19]} Qc7 {[%emt 0:04:15]} 32. Bg3 {[%emt 0:00:52]} Qf7 {[%emt 0:00:53]} 33. Qxf7 {[%emt 0:00:08]} Rxf7 {[%emt 0:00:03]} 34. Kg2 {[%emt 0:00:04]} Kg8 {[%emt 0:07:28]} 35. b4 {[%emt 0:02:38]} cxb4 {[%emt 0:02:23]} 36. axb4 {[%emt 0:00:16]} Rb7 {[%emt 0:01:19]} 37. Be1 {[%emt 0:04:05]} Rd4 {[%emt 0:01:56]} 38. Nc5 {[%emt 0:04:31]} Re7 {[%emt 0:00:14]} 39. Nxa6 {[%emt 0:01:25]} Rxc4 {[%emt 0:00:30]} 40. b5 {[%emt 0:00:00]} Bc3 {[%emt 0:00:00]} 41. Bg3 {[%emt 0:03:31]} d2 {[%emt 0:08:30]} 42. b6 {[%emt 0:01:16]} Rb7 {[%emt 0:03:45]} 43. Bf2 {[%emt 0:00:49]} Ba5 {[%emt 0:00:46]} 0-1